[Event "*** SCC Grand Prix: Titled Tuesday Blitz"]
[Site "Chess.com"]
[Date "2020.06.23"]
[Round "5"]
[White "GM_LOADING"]
[Black "aa175"]
[Result "1-0"]
[WhiteElo "2569"]
[BlackElo "2400"]
[TimeControl "180+1"]
[EndTime "10:57:44 PDT"]
[Termination "GM_LOADING won by checkmate"]

1. e4 {[%clk 0:03:00.9]} 1... c5 {[%clk 0:02:58.1]} 2. Nf3 {[%clk 0:03:01]} 2...
d6 {[%clk 0:02:49.4]} 3. d4 {[%clk 0:03:01.1]} 3... cxd4 {[%clk 0:02:50.3]} 4.
Nxd4 {[%clk 0:03:02]} 4... Nf6 {[%clk 0:02:50.5]} 5. Nc3 {[%clk 0:02:52.9]} 5...
a6 {[%clk 0:02:50.3]} 6. Be2 {[%clk 0:02:46.6]} 6... e6 {[%clk 0:02:49.6]} 7.
Be3 {[%clk 0:02:45.4]} 7... Nbd7 {[%clk 0:02:44.5]} 8. g4 {[%clk 0:02:44.6]}
8... h6 {[%clk 0:02:43]} 9. f4 {[%clk 0:02:42.9]} 9... b5 {[%clk 0:02:37.2]} 10.
g5 {[%clk 0:02:40.3]} 10... hxg5 {[%clk 0:02:32.6]} 11. fxg5 {[%clk 0:02:41.2]}
11... Ng8 {[%clk 0:02:15.8]} 12. g6 {[%clk 0:02:28.7]} 12... Ne5 {[%clk
0:02:14]} 13. gxf7+ {[%clk 0:02:26.2]} 13... Nxf7 {[%clk 0:02:14.9]} 14. Qd2
{[%clk 0:01:45.1]} 14... Bb7 {[%clk 0:02:11.4]} 15. Nxe6 {[%clk 0:01:39.7]}
15... Qd7 {[%clk 0:02:03.3]} 16. Bg4 {[%clk 0:01:32.7]} 16... Ne5 {[%clk
0:01:56.6]} 17. Qg2 {[%clk 0:01:00.7]} 17... Nxg4 {[%clk 0:01:30.5]} 18. Qxg4
{[%clk 0:01:00.4]} 18... Nf6 {[%clk 0:01:25]} 19. Qg6+ {[%clk 0:00:57.9]} 19...
Qf7 {[%clk 0:01:16.4]} 20. Nc7+ {[%clk 0:00:56.7]} 20... Ke7 {[%clk 0:01:16.9]}
21. Qxf7+ {[%clk 0:00:56.9]} 21... Kxf7 {[%clk 0:01:17.8]} 22. Nxa8 {[%clk
0:00:57.1]} 22... Bxa8 {[%clk 0:01:18.7]} 23. O-O-O {[%clk 0:00:56.9]} 23... b4
{[%clk 0:01:17.1]} 24. Nd5 {[%clk 0:00:57]} 24... Nxe4 {[%clk 0:01:16.5]} 25.
Rhf1+ {[%clk 0:00:53]} 25... Kg8 {[%clk 0:01:15.8]} 26. Bf4 {[%clk 0:00:49.4]}
26... Rh4 {[%clk 0:01:07.8]} 27. Bg3 {[%clk 0:00:31.2]} 27... Rh5 {[%clk
0:01:00.4]} 28. Nxb4 {[%clk 0:00:20]} 28... Rb5 {[%clk 0:00:49.4]} 29. Nd3
{[%clk 0:00:18.7]} 29... g6 {[%clk 0:00:45.1]} 30. Nf4 {[%clk 0:00:08]} 30...
Bg7 {[%clk 0:00:41.4]} 31. c3 {[%clk 0:00:08.3]} 31... g5 {[%clk 0:00:37.8]} 32.
Nh5 {[%clk 0:00:05.4]} 32... Bh8 {[%clk 0:00:27.8]} 33. Bxd6 {[%clk 0:00:05.3]}
33... Bd5 {[%clk 0:00:20.7]} 34. Be7 {[%clk 0:00:05.4]} 34... Be5 {[%clk
0:00:11]} 35. Bf6 {[%clk 0:00:01.8]} 35... Bxh2 {[%clk 0:00:05.1]} 36. Bd4
{[%clk 0:00:01.8]} 36... Nd6 {[%clk 0:00:03.7]} 37. Nf6+ {[%clk 0:00:02.7]}
37... Kh8 {[%clk 0:00:03.5]} 38. Nxd5+ {[%clk 0:00:03.6]} 38... Kh7 {[%clk
0:00:03.6]} 39. Be3 {[%clk 0:00:04.5]} 39... Kh6 {[%clk 0:00:03.8]} 40. c4
{[%clk 0:00:04.9]} 40... Nxc4 {[%clk 0:00:03.9]} 41. Nf6 {[%clk 0:00:05.8]}
41... Be5 {[%clk 0:00:03.5]} 42. Ng4+ {[%clk 0:00:06.7]} 42... Kg6 {[%clk
0:00:03.1]} 43. Nxe5+ {[%clk 0:00:07.6]} 43... Nxe5 {[%clk 0:00:02.6]} 44. Bd4
{[%clk 0:00:08.5]} 44... Nc4 {[%clk 0:00:02.9]} 45. Bc3 {[%clk 0:00:09.1]} 45...
Ne3 {[%clk 0:00:02.8]} 46. Rd6+ {[%clk 0:00:09.1]} 46... Kh5 {[%clk 0:00:03.4]}
47. Rh1+ {[%clk 0:00:09.7]} 47... Kg4 {[%clk 0:00:03.9]} 48. Rg1+ {[%clk
0:00:10.3]} 48... Kf3 {[%clk 0:00:03.3]} 49. Rf6+ {[%clk 0:00:10.9]} 49... Ke2
{[%clk 0:00:03.8]} 50. Re1+ {[%clk 0:00:10.9]} 50... Kd3 {[%clk 0:00:03.8]} 51.
Rd6+ {[%clk 0:00:10.8]} 51... Kc4 {[%clk 0:00:01.1]} 52. Rxe3 {[%clk 0:00:10.6]}
52... Rf5 {[%clk 0:00:01.6]} 53. Re4+ {[%clk 0:00:10.2]} 53... Kb5 {[%clk
0:00:01.9]} 54. Re5+ {[%clk 0:00:10.8]} 54... Rxe5 {[%clk 0:00:02.2]} 55. Bxe5
{[%clk 0:00:11.7]} 55... g4 {[%clk 0:00:02.9]} 56. Rg6 {[%clk 0:00:12.3]} 56...
a5 {[%clk 0:00:03.7]} 57. Rxg4 {[%clk 0:00:12.2]} 57... Kc5 {[%clk 0:00:04.6]}
58. Bc3 {[%clk 0:00:12.5]} 58... Kd5 {[%clk 0:00:05.5]} 59. Rg5+ {[%clk
0:00:13]} 59... Kc4 {[%clk 0:00:05.9]} 60. Rxa5 {[%clk 0:00:13.9]} 60... Kd3
{[%clk 0:00:06.4]} 61. Ra4 {[%clk 0:00:13.7]} 61... Ke3 {[%clk 0:00:06.7]} 62.
Rd4 {[%clk 0:00:14.3]} 62... Ke2 {[%clk 0:00:07.1]} 63. a4 {[%clk 0:00:15.2]}
63... Ke3 {[%clk 0:00:08]} 64. a5 {[%clk 0:00:16]} 64... Ke2 {[%clk 0:00:08.9]}
65. a6 {[%clk 0:00:16.9]} 65... Ke3 {[%clk 0:00:09.8]} 66. a7 {[%clk 0:00:17.8]}
66... Kf2 {[%clk 0:00:10.7]} 67. a8=Q {[%clk 0:00:17.9]} 67... Ke2 {[%clk
0:00:11.6]} 68. Qd5 {[%clk 0:00:17.8]} 68... Kf2 {[%clk 0:00:12.5]} 69. Qe5
{[%clk 0:00:18.1]} 69... Kf1 {[%clk 0:00:13.4]} 70. Rf4+ {[%clk 0:00:18.3]}
70... Kg2 {[%clk 0:00:14.3]} 71. Qg5+ {[%clk 0:00:18.9]} 71... Kh1 {[%clk
0:00:14.9]} 72. Rh4# {[%clk 0:00:19.8]} 1-0

[Event "*** SCC Grand Prix: Titled Tuesday Blitz"]
[Site "Chess.com"]
[Date "2020.06.23"]
[Round "5"]
[White "Iljushin_Alexey"]
[Black "Poghosyan_Suren"]
[Result "1-0"]
[WhiteElo "2719"]
[BlackElo "2451"]
[TimeControl "180+1"]
[EndTime "10:57:48 PDT"]
[Termination "Iljushin_Alexey won by resignation"]

1. d4 {[%clk 0:03:00.9]} 1... Nf6 {[%clk 0:02:59.1]} 2. c4 {[%clk 0:03:00.9]}
2... c5 {[%clk 0:02:58.4]} 3. d5 {[%clk 0:03:00.8]} 3... b5 {[%clk 0:02:58.4]}
4. Nf3 {[%clk 0:03:00.3]} 4... bxc4 {[%clk 0:02:57.5]} 5. Nc3 {[%clk 0:02:59.1]}
5... g6 {[%clk 0:02:57.8]} 6. e4 {[%clk 0:02:59]} 6... d6 {[%clk 0:02:58]} 7. h3
{[%clk 0:02:54.1]} 7... Bg7 {[%clk 0:02:57.2]} 8. Bxc4 {[%clk 0:02:53]} 8... O-O
{[%clk 0:02:57.5]} 9. O-O {[%clk 0:02:52.7]} 9... Nbd7 {[%clk 0:02:58]} 10. Re1
{[%clk 0:02:50.8]} 10... Nb6 {[%clk 0:02:57.8]} 11. Bb5 {[%clk 0:02:49.1]} 11...
e5 {[%clk 0:02:32.2]} 12. dxe6 {[%clk 0:02:46]} 12... Bxe6 {[%clk 0:02:30.2]}
13. Bf4 {[%clk 0:02:41.9]} 13... d5 {[%clk 0:02:27.6]} 14. Bc6 {[%clk
0:02:35.8]} 14... Rc8 {[%clk 0:02:18.6]} 15. Bb7 {[%clk 0:02:36]} 15... d4
{[%clk 0:02:14.3]} 16. Bxc8 {[%clk 0:02:32]} 16... Qxc8 {[%clk 0:02:06.6]} 17.
Ne2 {[%clk 0:02:22.8]} 17... Nxe4 {[%clk 0:01:59.8]} 18. Nexd4 {[%clk
0:02:21.4]} 18... Nxf2 {[%clk 0:01:59.6]} 19. Kxf2 {[%clk 0:02:18.8]} 19... cxd4
{[%clk 0:01:59.1]} 20. Rc1 {[%clk 0:02:17.4]} 20... Qd8 {[%clk 0:01:37.5]} 21.
Be5 {[%clk 0:02:17.2]} 21... d3 {[%clk 0:01:21.4]} 22. Bxg7 {[%clk 0:02:15.5]}
22... Kxg7 {[%clk 0:01:21.5]} 23. Re3 {[%clk 0:02:12.7]} 23... Nd5 {[%clk
0:01:03.3]} 24. Rxd3 {[%clk 0:02:09.1]} 24... Qb6+ {[%clk 0:01:02.6]} 25. Rd4
{[%clk 0:02:05.1]} 25... Qxb2+ {[%clk 0:00:50.4]} 26. Qd2 {[%clk 0:02:04.7]}
26... Qb6 {[%clk 0:00:49.5]} 27. Kf1 {[%clk 0:02:02.6]} 27... Nf6 {[%clk
0:00:46.2]} 28. a4 {[%clk 0:01:53.2]} 28... Nh5 {[%clk 0:00:26.9]} 29. a5 {[%clk
0:01:47.1]} 29... Qb5+ {[%clk 0:00:21.1]} 30. Kf2 {[%clk 0:01:45.3]} 30... Nf6
{[%clk 0:00:16.2]} 31. Re1 {[%clk 0:01:43.9]} 31... Rc8 {[%clk 0:00:14.6]} 32.
Re5 {[%clk 0:01:40.9]} 32... Qb3 {[%clk 0:00:13.6]} 33. Re3 {[%clk 0:01:37.1]}
33... Qb1 {[%clk 0:00:13.5]} 34. Re1 {[%clk 0:01:36.7]} 34... Qb3 {[%clk
0:00:13.5]} 35. Re2 {[%clk 0:01:35.1]} 35... Rc6 {[%clk 0:00:12.7]} 36. Qe3
{[%clk 0:01:33.4]} 36... Qb1 {[%clk 0:00:11.9]} 37. Re1 {[%clk 0:01:29.4]} 37...
Qb5 {[%clk 0:00:11.4]} 38. Qe5 {[%clk 0:01:27.3]} 38... Rc5 {[%clk 0:00:11.6]}
39. Qe3 {[%clk 0:01:24.8]} 39... Qxa5 {[%clk 0:00:11.2]} 40. Kg1 {[%clk
0:01:25.1]} 40... Rc2 {[%clk 0:00:10.7]} 41. Rd2 {[%clk 0:01:24.9]} 41... Rxd2
{[%clk 0:00:10]} 42. Qxd2 {[%clk 0:01:24.5]} 42... Qb6+ {[%clk 0:00:10.4]} 43.
Qe3 {[%clk 0:01:23.8]} 43... Qa5 {[%clk 0:00:10.7]} 44. Qd4 {[%clk 0:01:23.5]}
44... a6 {[%clk 0:00:07.6]} 45. Ra1 {[%clk 0:01:22.2]} 45... Qb5 {[%clk
0:00:07.2]} 46. Nd2 {[%clk 0:01:18.2]} 46... h6 {[%clk 0:00:06.2]} 47. Ne4
{[%clk 0:01:15.4]} 47... Qf5 {[%clk 0:00:06.1]} 48. Nd2 {[%clk 0:01:03.1]} 48...
Qd5 {[%clk 0:00:04.1]} 49. Qc3 {[%clk 0:01:02.2]} 49... Qd6 {[%clk 0:00:03.5]}
50. Rf1 {[%clk 0:01:00.2]} 50... Bf5 {[%clk 0:00:03.5]} 51. g4 {[%clk
0:00:55.4]} 51... Qb6+ {[%clk 0:00:03.6]} 52. Rf2 {[%clk 0:00:53.7]} 52... Qe6
{[%clk 0:00:01.3]} 53. gxf5 {[%clk 0:00:52.5]} 53... gxf5 {[%clk 0:00:02.2]} 54.
Rg2+ {[%clk 0:00:51.3]} 54... Kh7 {[%clk 0:00:02.4]} 55. Nf3 {[%clk 0:00:50.8]}
55... Qb6+ {[%clk 0:00:01.8]} 56. Qd4 {[%clk 0:00:49.9]} 56... Qb1+ {[%clk
0:00:01.6]} 57. Kh2 {[%clk 0:00:48.9]} 57... Qb8+ {[%clk 0:00:02.5]} 58. Qe5
{[%clk 0:00:48.6]} 58... Qb6 {[%clk 0:00:03.2]} 59. Qxf5+ {[%clk 0:00:48.1]}
59... Kh8 {[%clk 0:00:03.9]} 60. Ne5 {[%clk 0:00:47.5]} 60... Qe6 {[%clk
0:00:03.4]} 61. Qxe6 {[%clk 0:00:44.5]} 61... fxe6 {[%clk 0:00:04.3]} 62. Rg6
{[%clk 0:00:44.6]} 62... Nd5 {[%clk 0:00:03.1]} 63. Rxh6+ {[%clk 0:00:44.8]}
63... Kg7 {[%clk 0:00:03]} 64. Rxe6 {[%clk 0:00:45.3]} 64... a5 {[%clk
0:00:03.9]} 65. Ra6 {[%clk 0:00:45.2]} 65... Nf4 {[%clk 0:00:03.7]} 66. Kg3
{[%clk 0:00:44.7]} 66... Ne2+ {[%clk 0:00:02.8]} 67. Kg4 {[%clk 0:00:44.5]}
67... Nc3 {[%clk 0:00:02.4]} 68. Kg5 {[%clk 0:00:43.8]} 68... Nd5 {[%clk
0:00:02]} 1-0

[Event "*** SCC Grand Prix: Titled Tuesday Blitz"]
[Site "Chess.com"]
[Date "2020.06.23"]
[Round "5"]
[White "chessplayer9919"]
[Black "ferdipy"]
[Result "0-1"]
[WhiteElo "2519"]
[BlackElo "2367"]
[TimeControl "180+1"]
[EndTime "10:57:50 PDT"]
[Termination "ferdipy won on time"]

1. d4 {[%clk 0:03:00.9]} 1... Nf6 {[%clk 0:02:46.6]} 2. c4 {[%clk 0:03:00.8]}
2... e6 {[%clk 0:02:46.2]} 3. Nf3 {[%clk 0:03:01.1]} 3... Bb4+ {[%clk
0:02:45.7]} 4. Bd2 {[%clk 0:02:59.6]} 4... Qe7 {[%clk 0:02:45.3]} 5. g3 {[%clk
0:02:58.4]} 5... Nc6 {[%clk 0:02:45]} 6. Bg2 {[%clk 0:02:54.8]} 6... Bxd2+
{[%clk 0:02:44.9]} 7. Nbxd2 {[%clk 0:02:55.7]} 7... d6 {[%clk 0:02:42.3]} 8. O-O
{[%clk 0:02:54.5]} 8... e5 {[%clk 0:02:42.9]} 9. d5 {[%clk 0:02:53.6]} 9... Nb8
{[%clk 0:02:42.9]} 10. b4 {[%clk 0:02:53.1]} 10... a5 {[%clk 0:02:41.4]} 11. a3
{[%clk 0:02:51.6]} 11... O-O {[%clk 0:02:40.2]} 12. Ne1 {[%clk 0:02:50.3]} 12...
Na6 {[%clk 0:02:39.9]} 13. Nc2 {[%clk 0:02:37.6]} 13... Bg4 {[%clk 0:02:36.9]}
14. h3 {[%clk 0:02:35.4]} 14... Bd7 {[%clk 0:02:34.7]} 15. Qb1 {[%clk 0:02:27]}
15... b5 {[%clk 0:02:20.6]} 16. c5 {[%clk 0:02:02.6]} 16... dxc5 {[%clk
0:02:01.4]} 17. bxc5 {[%clk 0:02:01.7]} 17... Nxc5 {[%clk 0:02:00.3]} 18. d6
{[%clk 0:01:54.8]} 18... cxd6 {[%clk 0:01:58.5]} 19. Bxa8 {[%clk 0:01:55.3]}
19... Rxa8 {[%clk 0:01:59.4]} 20. Rd1 {[%clk 0:01:48.4]} 20... Rb8 {[%clk
0:01:54.7]} 21. Kh2 {[%clk 0:01:33.8]} 21... Qe6 {[%clk 0:01:46.1]} 22. g4
{[%clk 0:01:30.4]} 22... h5 {[%clk 0:01:24.9]} 23. f3 {[%clk 0:01:23.8]} 23...
e4 {[%clk 0:01:19.7]} 24. Re1 {[%clk 0:01:08.1]} 24... Qe5+ {[%clk 0:00:58.4]}
25. Kg2 {[%clk 0:00:58.4]} 25... h4 {[%clk 0:00:53.4]} 26. Nf1 {[%clk
0:00:46.4]} 26... Nd5 {[%clk 0:00:40.6]} 27. Nce3 {[%clk 0:00:19.4]} 27... Nf4+
{[%clk 0:00:31.5]} 28. Kh1 {[%clk 0:00:17]} 28... Nxh3 {[%clk 0:00:31.8]} 29.
Qc1 {[%clk 0:00:08.3]} 29... Nb3 {[%clk 0:00:30.6]} 30. Qd1 {[%clk 0:00:04.8]}
30... Nf2+ {[%clk 0:00:27.9]} 31. Kg1 {[%clk 0:00:05]} 31... Nxd1 {[%clk
0:00:28.8]} 32. Raxd1 {[%clk 0:00:05.4]} 32... exf3 {[%clk 0:00:26.4]} 33. exf3
{[%clk 0:00:05.4]} 33... Be6 {[%clk 0:00:25.2]} 34. Nd5 {[%clk 0:00:02.7]} 34...
Qb2 {[%clk 0:00:19.1]} 35. Nfe3 {[%clk 0:00:02]} 35... Nc5 {[%clk 0:00:15.3]}
36. Rb1 {[%clk 0:00:01.9]} 36... Qxa3 {[%clk 0:00:15.2]} 37. Ne7+ {[%clk
0:00:02.2]} 37... Kf8 {[%clk 0:00:15.2]} 38. Nc6 {[%clk 0:00:02.6]} 38... Rc8
{[%clk 0:00:15.6]} 39. Nd4 {[%clk 0:00:02.9]} 39... Qd3 {[%clk 0:00:13.3]} 40.
Nxb5 {[%clk 0:00:02.7]} 40... Qg6 {[%clk 0:00:10.2]} 41. Nxd6 {[%clk 0:00:02.2]}
41... Rd8 {[%clk 0:00:09.9]} 42. Red1 {[%clk 0:00:02.2]} 42... Bxg4 {[%clk
0:00:08.7]} 43. Nxg4 {[%clk 0:00:02.2]} 43... Rxd6 {[%clk 0:00:07.9]} 44. Rb8+
{[%clk 0:00:02.8]} 44... Ke7 {[%clk 0:00:07.1]} 45. Re1+ {[%clk 0:00:03.7]}
45... Ne6 {[%clk 0:00:06]} 46. Reb1 {[%clk 0:00:03.3]} 46... Rd7 {[%clk
0:00:06.1]} 47. Rf1 {[%clk 0:00:02.4]} 47... f5 {[%clk 0:00:05.6]} 48. Kf2
{[%clk 0:00:02.8]} 48... fxg4 {[%clk 0:00:06]} 49. fxg4 {[%clk 0:00:03.1]} 49...
Qc2+ {[%clk 0:00:06.6]} 50. Ke3 {[%clk 0:00:03.8]} 50... Qc5+ {[%clk 0:00:06.6]}
51. Ke2 {[%clk 0:00:03.3]} 51... Qc4+ {[%clk 0:00:06.7]} 52. Kf2 {[%clk
0:00:03.5]} 52... Qf4+ {[%clk 0:00:06.4]} 53. Kg1 {[%clk 0:00:01.3]} 53... Qxb8
{[%clk 0:00:07]} 0-1

[Event "*** SCC Grand Prix: Titled Tuesday Blitz"]
[Site "Chess.com"]
[Date "2020.06.23"]
[Round "5"]
[White "Eltaj_Safarli"]
[Black "exoticprincess"]
[Result "1-0"]
[WhiteElo "2960"]
[BlackElo "2778"]
[TimeControl "180+1"]
[EndTime "10:57:53 PDT"]
[Termination "Eltaj_Safarli won by resignation"]

1. e4 {[%clk 0:03:00.9]} 1... c6 {[%clk 0:02:58.6]} 2. d4 {[%clk 0:03:00.2]}
2... d5 {[%clk 0:02:58.9]} 3. exd5 {[%clk 0:03:00.3]} 3... cxd5 {[%clk
0:02:59.3]} 4. c4 {[%clk 0:02:59.6]} 4... e6 {[%clk 0:02:59.3]} 5. Nc3 {[%clk
0:02:59.8]} 5... Nf6 {[%clk 0:02:59.7]} 6. Nf3 {[%clk 0:02:55.4]} 6... Be7
{[%clk 0:02:59.8]} 7. cxd5 {[%clk 0:02:55.1]} 7... Nxd5 {[%clk 0:02:58.2]} 8.
Bd3 {[%clk 0:02:55.5]} 8... Nc6 {[%clk 0:02:58.5]} 9. O-O {[%clk 0:02:52.8]}
9... O-O {[%clk 0:02:58.7]} 10. Re1 {[%clk 0:02:53.3]} 10... Bf6 {[%clk
0:02:54.7]} 11. Be4 {[%clk 0:02:51.1]} 11... Nce7 {[%clk 0:02:52.5]} 12. Qd3
{[%clk 0:02:50]} 12... h6 {[%clk 0:02:46.8]} 13. Ne5 {[%clk 0:02:48.7]} 13...
Nxc3 {[%clk 0:02:42.3]} 14. Qxc3 {[%clk 0:02:47.1]} 14... Nf5 {[%clk 0:02:37.5]}
15. Be3 {[%clk 0:02:44.7]} 15... Nd6 {[%clk 0:02:18.2]} 16. Bd3 {[%clk
0:02:42.8]} 16... Bd7 {[%clk 0:02:15.4]} 17. Qb3 {[%clk 0:02:40.6]} 17... Bc6
{[%clk 0:02:08.8]} 18. Nxc6 {[%clk 0:02:40.5]} 18... bxc6 {[%clk 0:02:09.7]} 19.
Rac1 {[%clk 0:02:40.6]} 19... Rb8 {[%clk 0:02:09]} 20. Qc2 {[%clk 0:02:37.5]}
20... Nb5 {[%clk 0:02:07.1]} 21. Qxc6 {[%clk 0:02:29.6]} 21... Nxd4 {[%clk
0:02:06.5]} 22. Qe4 {[%clk 0:02:29.3]} 22... Re8 {[%clk 0:01:53.3]} 23. Qh7+
{[%clk 0:02:27.7]} 23... Kf8 {[%clk 0:01:53.6]} 24. b3 {[%clk 0:02:17.6]} 24...
Rc8 {[%clk 0:01:38.7]} 25. Rcd1 {[%clk 0:02:15]} 25... Qa5 {[%clk 0:01:33]} 26.
Bc4 {[%clk 0:02:08.5]} 26... Red8 {[%clk 0:01:27.9]} 27. Bd2 {[%clk 0:01:58.9]}
27... Qb6 {[%clk 0:01:22.6]} 28. a3 {[%clk 0:01:53.7]} 28... a5 {[%clk 0:01:20]}
29. Be3 {[%clk 0:01:54.2]} 29... Ke7 {[%clk 0:01:19.5]} 30. Qe4 {[%clk
0:01:51.7]} 30... Rd6 {[%clk 0:01:17.3]} 31. a4 {[%clk 0:01:48.3]} 31... Rcd8
{[%clk 0:01:16.9]} 32. Kf1 {[%clk 0:01:41.9]} 32... Kf8 {[%clk 0:01:14.7]} 33.
g3 {[%clk 0:01:41.6]} 33... Kg8 {[%clk 0:01:14.5]} 34. h4 {[%clk 0:01:39.8]}
34... Qb4 {[%clk 0:01:14]} 35. Bf4 {[%clk 0:01:31.1]} 35... R6d7 {[%clk
0:01:12]} 36. Re3 {[%clk 0:01:25.7]} 36... Nf5 {[%clk 0:01:06.7]} 37. Red3
{[%clk 0:01:25.9]} 37... Rd4 {[%clk 0:01:03.4]} 38. Rxd4 {[%clk 0:01:22.4]}
38... Rxd4 {[%clk 0:01:00.8]} 39. Rxd4 {[%clk 0:01:22.4]} 39... Nxd4 {[%clk
0:01:00.9]} 40. Qa8+ {[%clk 0:01:17.8]} 40... Kh7 {[%clk 0:01:01.1]} 41. Qe4+
{[%clk 0:01:18.4]} 41... g6 {[%clk 0:01:00.7]} 42. h5 {[%clk 0:01:14]} 42...
Nxb3 {[%clk 0:00:57.8]} 43. hxg6+ {[%clk 0:01:13]} 43... Kg7 {[%clk 0:00:55]}
44. gxf7 {[%clk 0:01:13.4]} 44... Nc5 {[%clk 0:00:53.8]} 45. Qe2 {[%clk
0:01:08.8]} 45... Kxf7 {[%clk 0:00:52.1]} 46. Be3 {[%clk 0:01:06.1]} 46... Nxa4
{[%clk 0:00:48.8]} 47. Bxe6+ {[%clk 0:01:01.2]} 47... Kg7 {[%clk 0:00:49.1]} 48.
Bf4 {[%clk 0:00:54]} 48... Qb1+ {[%clk 0:00:46.9]} 49. Kg2 {[%clk 0:00:54]}
49... Nc3 {[%clk 0:00:47.2]} 50. Qa6 {[%clk 0:00:43.8]} 50... Qe4+ {[%clk
0:00:46.3]} 51. Kh2 {[%clk 0:00:43.9]} 51... Bd4 {[%clk 0:00:40.8]} 52. Bxh6+
{[%clk 0:00:43.1]} 52... Kh7 {[%clk 0:00:40.3]} 53. Bf4 {[%clk 0:00:31.2]} 53...
Bxf2 {[%clk 0:00:40.3]} 54. Qc8 {[%clk 0:00:27.9]} 54... Bxg3+ {[%clk
0:00:32.4]} 55. Bxg3 {[%clk 0:00:28.8]} 55... Qe2+ {[%clk 0:00:32.1]} 56. Kh3
{[%clk 0:00:27.9]} 56... Qh5+ {[%clk 0:00:32.2]} 57. Kg2 {[%clk 0:00:27.2]}
57... Qe2+ {[%clk 0:00:32.3]} 58. Bf2 {[%clk 0:00:26.1]} 58... Qe4+ {[%clk
0:00:32.2]} 59. Kh2 {[%clk 0:00:21.4]} 59... Qe5+ {[%clk 0:00:30.3]} 60. Kh3
{[%clk 0:00:20.4]} 60... Qh5+ {[%clk 0:00:29.6]} 61. Kg2 {[%clk 0:00:19]} 61...
Qg6+ {[%clk 0:00:28.9]} 62. Bg4 {[%clk 0:00:17.9]} 62... Ne4 {[%clk 0:00:24.2]}
63. Bd4 {[%clk 0:00:11.8]} 63... Nf6 {[%clk 0:00:19.2]} 64. Qc7+ {[%clk
0:00:12]} 64... Kh6 {[%clk 0:00:18.3]} 65. Be3+ {[%clk 0:00:09.2]} 1-0

[Event "*** SCC Grand Prix: Titled Tuesday Blitz"]
[Site "Chess.com"]
[Date "2020.06.23"]
[Round "5"]
[White "VMikhalevski"]
[Black "BillieKimbah"]
[Result "1/2-1/2"]
[WhiteElo "2795"]
[BlackElo "2858"]
[TimeControl "180+1"]
[EndTime "10:57:58 PDT"]
[Termination "Game drawn - insufficient material"]

1. d4 {[%clk 0:03:00.9]} 1... Nf6 {[%clk 0:02:59.9]} 2. Nf3 {[%clk 0:03:00.3]}
2... d5 {[%clk 0:02:59.2]} 3. c4 {[%clk 0:02:59.6]} 3... e6 {[%clk 0:02:59.4]}
4. g3 {[%clk 0:02:59]} 4... dxc4 {[%clk 0:02:53.8]} 5. Bg2 {[%clk 0:02:58.8]}
5... c6 {[%clk 0:02:54.3]} 6. Ne5 {[%clk 0:02:49.5]} 6... Bb4+ {[%clk 0:02:54]}
7. Nc3 {[%clk 0:02:48.8]} 7... Nd5 {[%clk 0:02:51.5]} 8. Bd2 {[%clk 0:02:48.3]}
8... Nb6 {[%clk 0:02:45.4]} 9. e3 {[%clk 0:02:42.1]} 9... N8d7 {[%clk
0:02:44.4]} 10. Ne4 {[%clk 0:02:30.9]} 10... Nxe5 {[%clk 0:02:32.6]} 11. dxe5
{[%clk 0:02:29.8]} 11... Be7 {[%clk 0:02:32.4]} 12. Qg4 {[%clk 0:02:10.1]} 12...
O-O {[%clk 0:02:23.9]} 13. Bc3 {[%clk 0:02:02.3]} 13... Nd5 {[%clk 0:02:22.1]}
14. Rd1 {[%clk 0:01:59.4]} 14... Bd7 {[%clk 0:01:53.7]} 15. Nf6+ {[%clk
0:01:52.1]} 15... Nxf6 {[%clk 0:01:41.4]} 16. exf6 {[%clk 0:01:51.6]} 16... Bxf6
{[%clk 0:01:41]} 17. Bxf6 {[%clk 0:01:50.9]} 17... Qxf6 {[%clk 0:01:41.6]} 18.
Rxd7 {[%clk 0:01:50.5]} 18... Qxb2 {[%clk 0:01:41.6]} 19. Qxc4 {[%clk 0:01:46]}
19... Rad8 {[%clk 0:01:32.9]} 20. Rxd8 {[%clk 0:01:41.8]} 20... Rxd8 {[%clk
0:01:33.8]} 21. O-O {[%clk 0:01:41.9]} 21... Rd2 {[%clk 0:01:33.9]} 22. a4
{[%clk 0:01:38.9]} 22... g6 {[%clk 0:01:33.5]} 23. h4 {[%clk 0:01:34.4]} 23...
h5 {[%clk 0:01:33]} 24. g4 {[%clk 0:01:32.5]} 24... hxg4 {[%clk 0:01:25.5]} 25.
Qxg4 {[%clk 0:01:32]} 25... Qe5 {[%clk 0:01:22]} 26. Rb1 {[%clk 0:01:22.4]}
26... Rd7 {[%clk 0:01:17.3]} 27. Qg5 {[%clk 0:01:18.7]} 27... Qxg5 {[%clk
0:01:15.5]} 28. hxg5 {[%clk 0:01:18.9]} 28... a5 {[%clk 0:01:10.5]} 29. Kf1
{[%clk 0:01:16.4]} 29... Kf8 {[%clk 0:01:11.1]} 30. Ke2 {[%clk 0:01:16.3]} 30...
Ke7 {[%clk 0:01:11.7]} 31. f4 {[%clk 0:01:12.2]} 31... Rc7 {[%clk 0:01:07]} 32.
Kd3 {[%clk 0:01:08.7]} 32... Kd6 {[%clk 0:01:07.5]} 33. Kc4 {[%clk 0:01:07.2]}
33... Re7 {[%clk 0:01:07.7]} 34. Rd1+ {[%clk 0:01:04.9]} 34... Kc7 {[%clk
0:01:08.3]} 35. Rd4 {[%clk 0:01:04.2]} 35... Re8 {[%clk 0:01:03.9]} 36. Rd1
{[%clk 0:00:58.6]} 36... e5 {[%clk 0:01:03.5]} 37. Rf1 {[%clk 0:00:55.6]} 37...
exf4 {[%clk 0:00:58.3]} 38. Rxf4 {[%clk 0:00:55.4]} 38... Rxe3 {[%clk
0:00:58.3]} 39. Rxf7+ {[%clk 0:00:54.6]} 39... Kb6 {[%clk 0:00:56.3]} 40. Bf3
{[%clk 0:00:49.9]} 40... Ra3 {[%clk 0:00:53.6]} 41. Rf6 {[%clk 0:00:44.3]} 41...
Rxa4+ {[%clk 0:00:53.4]} 42. Kb3 {[%clk 0:00:42.1]} 42... Rb4+ {[%clk
0:00:51.1]} 43. Kc3 {[%clk 0:00:42.2]} 43... Rb1 {[%clk 0:00:45.4]} 44. Rxg6
{[%clk 0:00:40.9]} 44... a4 {[%clk 0:00:46]} 45. Be4 {[%clk 0:00:38.3]} 45...
Re1 {[%clk 0:00:45.3]} 46. Bc2 {[%clk 0:00:35]} 46... a3 {[%clk 0:00:42.3]} 47.
Bb3 {[%clk 0:00:27.5]} 47... Re3+ {[%clk 0:00:28.3]} 48. Kb4 {[%clk 0:00:23.7]}
48... Rg3 {[%clk 0:00:19.1]} 49. Kxa3 {[%clk 0:00:15.5]} 49... Kc5 {[%clk
0:00:20]} 50. Rg8 {[%clk 0:00:12.9]} 50... b5 {[%clk 0:00:20.5]} 51. g6 {[%clk
0:00:12.7]} 51... b4+ {[%clk 0:00:19]} 52. Kb2 {[%clk 0:00:11.5]} 52... Rg2+
{[%clk 0:00:18.4]} 53. Kc1 {[%clk 0:00:06.4]} 53... Kd4 {[%clk 0:00:18.8]} 54.
Bf7 {[%clk 0:00:04.8]} 54... Kc3 {[%clk 0:00:18.6]} 55. Kd1 {[%clk 0:00:04.8]}
55... b3 {[%clk 0:00:16.8]} 56. Rb8 {[%clk 0:00:04.8]} 56... b2 {[%clk
0:00:10.9]} 57. Rb3+ {[%clk 0:00:04.5]} 57... Kd4 {[%clk 0:00:11.5]} 58. Ke1
{[%clk 0:00:04.7]} 58... b1=Q+ {[%clk 0:00:07.1]} 59. Rxb1 {[%clk 0:00:04]}
59... Rg1+ {[%clk 0:00:07.8]} 60. Kf2 {[%clk 0:00:04.7]} 60... Rxb1 {[%clk
0:00:08.5]} 61. g7 {[%clk 0:00:05.3]} 61... Rb8 {[%clk 0:00:09.1]} 62. g8=Q
{[%clk 0:00:05.6]} 62... Rxg8 {[%clk 0:00:09.3]} 63. Bxg8 {[%clk 0:00:06.2]}
63... c5 {[%clk 0:00:10]} 64. Ke2 {[%clk 0:00:06.5]} 64... c4 {[%clk 0:00:10.6]}
65. Bxc4 {[%clk 0:00:06.6]} 1/2-1/2